fUST/lending_fUST_20251004
["ID","MTS","AMOUNT","RATE_DAILY","PERIOD"]
[389151733,1759591884297,-500.0,0.00020273,2]
[389151734,1759591884306,-195.721782,0.00020273,2]
[389151735,1759591884315,-195.721782,0.00020273,2]
[389151736,1759591884325,-500.0,0.00020273,2]
[389151737,1759591884335,-1300.89,0.00020273,2]
[389151738,1759591884345,-2067.67,0.00020273,2]
[389151739,1759591884355,-195.721782,0.00020273,2]
[389151740,1759591884364,-195.721788,0.00020273,2]
[389151741,1759591884373,-151.0,0.00020273,2]
[389151742,1759591884383,-151.0,0.00020273,2]
[389151743,1759591884392,-500.0,0.00020273,2]
[389151744,1759591884401,-312.351958,0.00020273,2]
[389151745,1759591884413,-312.351958,0.00020273,2]
[389151746,1759591884422,-312.351958,0.00020273,2]
[389151747,1759591884432,-500.0,0.00020273,2]
[389151748,1759591884441,-312.351957,0.00020273,2]
[389151749,1759591884451,-614.77,0.00020273,2]
[389151750,1759591884460,-180.679866,0.00020273,2]
[389151751,1759591884469,-857.26,0.00020273,2]
[389151752,1759591884479,-180.679866,0.00020273,2]
[389151753,1759591884488,-151.0,0.00020273,2]
[389151754,1759591884497,-151.0,0.00020273,2]
[389151755,1759591884507,-151.0,0.00020273,2]
[389151756,1759591884517,-180.679866,0.00020273,2]
[389151757,1759591884527,-151.0,0.00020273,2]
[389151758,1759591884536,-180.679874,0.00020273,2]
[389151759,1759591884546,-151.0,0.00020273,2]
[389151760,1759591884555,-560.4,0.00020273,2]
[389151761,1759591884565,-500.0,0.00020273,2]
[389151762,1759591884574,-1254.52,0.00020273,2]
[389151763,1759591884584,-500.0,0.00020273,2]
[389151764,1759591884593,-731.76,0.00020273,2]
[389151765,1759591884603,-500.0,0.00020273,2]
[389151766,1759591884613,-500.0,0.00020273,2]
[389151767,1759591884622,-500.0,0.00020273,2]
[389151768,1759591884631,-1479.56,0.00020273,2]
[389151769,1759591884640,-3943.88,0.00020273,2]
[389151770,1759591884650,-151.0,0.00020273,2]
[389151771,1759591884660,-500.0,0.00020273,2]
[389151772,1759591884671,-151.0,0.00020273,2]
[389151773,1759591884681,-500.0,0.00020273,2]
[389151774,1759591884691,-151.0,0.00020273,2]
[389151775,1759591884700,-500.0,0.00020273,2]
[389151776,1759591884710,-500.0,0.00020273,2]
[389151777,1759591884719,-500.0,0.00020273,2]
[389151778,1759591884728,-1175.17,0.00020273,2]
[389151779,1759591884738,-1420.43,0.00020273,2]
[389151780,1759591884747,-678.445089,0.00020273,2]
[389151781,1759591884756,-678.445089,0.00020273,2]
[389151782,1759591884765,-500.0,0.00020273,2]
[389151783,1759591884775,-678.445089,0.00020273,2]
[389151784,1759591884785,-678.445088,0.00020273,2]
[389151785,1759591884794,-500.0,0.00020273,2]
[389151786,1759591884804,-3237.92,0.00020273,2]
[389151787,1759591884818,-500.0,0.00020273,2]
[389151788,1759591884828,-1919.12,0.00020273,2]
[389151789,1759591884837,-968.29,0.00020273,2]
[389151790,1759591884847,-500.0,0.00020273,2]
[389151791,1759591884859,-4834.1,0.00020273,2]
[389151792,1759591884868,-668.17,0.00020273,2]
[389151793,1759591884879,-863.7,0.00020273,2]
[389151794,1759591884888,-4308.41,0.00020273,2]
[389151795,1759591884899,-500.0,0.00020273,2]
[389151796,1759591884909,-1158.05,0.00020273,2]
[389151797,1759591884923,-500.0,0.00020273,2]
[389151798,1759591884933,-1128.4,0.00020273,2]
[389151799,1759591884943,-500.0,0.00020273,2]
[389151800,1759591884952,-500.0,0.00020273,2]
[389151801,1759591884961,-1888.79,0.00020273,2]
[389151802,1759591884971,-500.0,0.00020273,2]
[389151803,1759591884980,-500.0,0.00020273,2]
[389151804,1759591884991,-355.73715322,0.00020273,2]
[389151805,1759591885000,-500.0,0.00020273,2]
[389151806,1759591885009,-500.0,0.00020273,2]
[389151807,1759591885019,-3598.98,0.00020273,2]
[389151808,1759591885028,-500.0,0.00020273,2]
[389151809,1759591885038,-500.0,0.00020273,2]
[389151810,1759591885047,-3279.78,0.00020273,2]
[389151811,1759591885056,-2623.19,0.00020273,2]
[389151812,1759591885067,-500.0,0.00020273,2]
[389151813,1759591885076,-1046.7,0.00020273,2]
[389151814,1759591885086,-500.0,0.00020273,2]
[389151815,1759591885095,-500.0,0.00020273,2]
[389151816,1759591885104,-500.0,0.00020273,2]
[389151817,1759591885113,-500.0,0.00020273,2]
[389151818,1759591885123,-500.0,0.00020273,2]
[389151819,1759591885132,-916.44,0.00020273,2]
[389151820,1759591885141,-500.0,0.00020273,2]
[389151821,1759591885155,-649.69,0.00020273,2]
[389151822,1759591885166,-500.0,0.00020273,2]
[389151823,1759591885176,-716.0,0.00020273,2]
[389151824,1759591885186,-692.99,0.00020273,2]
[389151825,1759591885196,-502.19,0.00020273,2]
[389151826,1759591885205,-1677.96,0.00020273,2]
[389151827,1759591885215,-500.0,0.00020273,2]
[389151828,1759591885225,-725.08,0.00020273,2]
[389151829,1759591885234,-500.0,0.00020273,2]
[389151830,1759591885245,-543.32,0.00020273,2]
[389151831,1759591885255,-2622.01,0.00020273,2]
[389151832,1759591885268,-1956.57,0.00020273,2]
[389151833,1759591885278,-500.0,0.00020273,2]
[389151834,1759591885288,-685.43,0.00020273,2]
[389151835,1759591885298,-4582.94,0.00020273,2]
[389151836,1759591885308,-620.36,0.00020273,2]
[389151837,1759591885317,-1066.95,0.00020273,2]
[389151838,1759591885327,-1558.65,0.00020273,2]
[389151840,1759591885337,-500.0,0.00020273,2]
[389151841,1759591885347,-500.0,0.00020273,2]
[389151842,1759591885356,-500.0,0.00020273,2]
[389151843,1759591885366,-583.58,0.00020273,2]
[389151844,1759591885375,-850.74,0.00020273,2]
[389151845,1759591885384,-500.0,0.00020273,2]
[389151846,1759591885394,-782.55,0.00020273,2]
[389151847,1759591885403,-500.0,0.00020273,2]
[389151848,1759591885412,-500.0,0.00020273,2]
[389151849,1759591885425,-1154.37,0.00020273,2]
[389151850,1759591885435,-545.73458338,0.00020273,2]
[389151851,1759591885444,-500.0,0.00020273,2]
[389151852,1759591885454,-837.9,0.00020273,2]
[389151853,1759591885464,-2615.62,0.00020273,2]
[389151854,1759591885474,-500.0,0.00020273,2]
[389151855,1759591885483,-500.0,0.00020273,2]
[389151856,1759591885493,-613.77,0.00020273,2]
[389151857,1759591885502,-695.31,0.00020273,2]
[389151858,1759591885511,-633.24,0.00020273,2]
[389151859,1759591885521,-3304.75,0.00020273,2]
[389151860,1759591885530,-1142.91,0.00020273,2]
[389151861,1759591885540,-500.0,0.00020273,2]
[389151862,1759591885549,-1593.05,0.00020273,2]
[389151863,1759591885560,-2044.74,0.00020273,2]
[389151864,1759591885570,-1681.94,0.00020273,2]
[389151865,1759591885579,-500.0,0.00020273,2]
[389151866,1759591885589,-500.0,0.00020273,2]
[389151867,1759591885598,-943.18,0.00020273,2]
[389151868,1759591885608,-500.0,0.00020273,2]
[389151869,1759591885617,-500.0,0.00020273,2]
[389151870,1759591885626,-1325.84,0.00020273,2]
[389151871,1759591885636,-500.0,0.00020273,2]
[389151872,1759591885646,-500.0,0.00020273,2]
[389151873,1759591885655,-1462.47,0.00020273,2]
[389151874,1759591885666,-315.91581834,0.00020273,2]
[389151875,1759591885675,-894.67,0.00020273,2]
[389151876,1759591885685,-325.72052516,0.00020273,2]
[389151877,1759591885695,-1441.01,0.00020273,2]
[389151878,1759591885704,-500.0,0.00020273,2]
[389151879,1759591885714,-500.0,0.00020273,2]
[389151880,1759591885723,-500.0,0.00020273,2]
[389151881,1759591885733,-948.86,0.00020273,2]
[389151882,1759591885742,-500.0,0.00020273,2]
[389151883,1759591885751,-500.0,0.00020273,2]
[389151884,1759591885761,-582.49,0.00020273,2]
[389151885,1759591885770,-1083.58,0.00020273,2]
[389151886,1759591885780,-2269.4,0.00020273,2]
[389151887,1759591885790,-7279.62,0.00020273,2]
[389151888,1759591885800,-859.66,0.00020273,2]
[389151889,1759591885809,-500.0,0.00020273,2]
[389151890,1759591885821,-885.0,0.00020273,2]
[389151891,1759591885831,-500.0,0.00020273,2]
[389151892,1759591885840,-500.0,0.00020273,2]
[389151893,1759591885849,-500.0,0.00020273,2]
[389151894,1759591885859,-500.0,0.00020273,2]
[389151895,1759591885868,-2242.57,0.00020273,2]
[389151896,1759591885878,-521.71,0.00020273,2]
[389151897,1759591885887,-500.0,0.00020273,2]
[389151898,1759591885898,-1253.86,0.00020273,2]
[389151899,1759591885907,-500.0,0.00020273,2]
[389151900,1759591885920,-1820.23,0.00020273,2]
[389151901,1759591885929,-1593.62,0.00020273,2]
[389151902,1759591885939,-500.0,0.00020273,2]
[389151903,1759591885949,-500.0,0.00020273,2]
[389151904,1759591885959,-500.0,0.00020273,2]
[389151905,1759591885969,-2434.85,0.00020273,2]
[389151906,1759591885979,-500.0,0.00020273,2]
[389151907,1759591885989,-500.0,0.00020273,2]
[389151908,1759591885999,-500.0,0.00020273,2]
[389151909,1759591886008,-500.0,0.00020273,2]
[389151910,1759591886018,-500.0,0.00020273,2]
[389151911,1759591886027,-983.67,0.00020273,2]
[389151912,1759591886036,-1438.86,0.00020273,2]
[389151913,1759591886045,-1155.35,0.00020273,2]
[389151914,1759591886055,-3420.09,0.00020273,2]
[389151915,1759591886064,-481.48608736,0.00020273,2]
[389151916,1759591886074,-500.0,0.00020273,2]
[389151917,1759591886083,-500.0,0.00020273,2]
[389151918,1759591886093,-883.76,0.00020273,2]
[389151919,1759591886102,-500.0,0.00020273,2]
[389151920,1759591886111,-500.0,0.00020273,2]
[389151921,1759591886121,-500.0,0.00020273,2]
[389151922,1759591886131,-603.06940771,0.00020273,2]
[389151923,1759591886140,-1284.14,0.00020273,2]
[389151924,1759591886150,-669.76,0.00020273,2]
[389151925,1759591886159,-500.0,0.00020273,2]
[389151926,1759591886169,-500.0,0.00020273,2]
[389151927,1759591886179,-5883.16,0.00020273,2]
[389151928,1759591886189,-5418.8,0.00020273,2]
[389151929,1759591886199,-500.0,0.00020273,2]
[389151930,1759591886208,-307.15421767,0.00020273,2]
[389151931,1759591886217,-500.0,0.00020273,2]
[389151932,1759591886227,-659.62,0.00020273,2]
[389151933,1759591886236,-500.0,0.00020273,2]
[389151934,1759591886245,-1049.37,0.00020273,2]
[389151935,1759591886254,-500.0,0.00020273,2]
[389151936,1759591886264,-500.0,0.00020273,2]
[389151937,1759591886273,-599.3,0.00020273,2]
[389151938,1759591886282,-500.0,0.00020273,2]
[389151939,1759591886291,-500.0,0.00020273,2]
[389151940,1759591886300,-6787.62,0.00020273,2]
[389151941,1759591886309,-1550.12,0.00020273,2]
[389151942,1759591886319,-645.14,0.00020273,2]
[389151943,1759591886328,-288.69760607,0.00020273,2]
[389151944,1759591886338,-500.0,0.00020273,2]
[389151945,1759591886348,-1658.15,0.00020273,2]
[389151946,1759591886357,-686.1,0.00020273,2]
[389151947,1759591886366,-419.43029068,0.00020274,2]
[389151948,1759591886375,-248.96665903,0.00020282,2]
[389151949,1759591886384,-1000.0,0.00020283,2]
[389151950,1759591886393,-1125.89763495,0.00020283,2]
[389151951,1759591886402,-1000.0,0.00020283,2]
[389151952,1759591886411,-151.0,0.00020284,2]
[389151953,1759591886422,-224.81872,0.00020284,2]
[389151954,1759591886431,-151.586398,0.00020284,2]
[389151955,1759591886441,-224.81872,0.00020284,2]
[389151956,1759591886450,-224.81872,0.00020284,2]
[389151957,1759591886458,-224.81872,0.00020284,2]
[389151958,1759591886468,-163.02676,0.00020284,2]
[389151959,1759591886476,-163.02676,0.00020284,2]
[389151960,1759591886485,-163.02676,0.00020284,2]
[389151961,1759591886494,-163.02676,0.00020284,2]
[389151962,1759591886505,-11799.58728372,0.000203,2]
[389151963,1759591886515,-500.0,0.00020315,2]
[389151964,1759591886526,-1000.0,0.00020321,2]
[389151965,1759591886535,-1000.0,0.00020321,2]
[389151966,1759591886545,-1000.0,0.00020321,2]
[389151967,1759591886555,-1000.0,0.00020321,2]
[389151968,1759591886564,-1000.0,0.00020321,2]
[389151969,1759591886573,-1000.0,0.00020321,2]
[389151970,1759591886582,-1000.0,0.00020321,2]
[389151971,1759591886592,-1000.0,0.00020321,2]
[389151972,1759591886601,-1000.0,0.00020321,2]
[389151973,1759591886612,-1000.0,0.00020321,2]
[389151974,1759591886622,-1000.0,0.00020321,2]
[389151975,1759591886631,-1000.0,0.00020321,2]
[389151976,1759591886641,-1000.0,0.00020321,2]
[389151977,1759591886650,-1000.0,0.00020321,2]
[389151978,1759591886660,-1000.0,0.00020321,2]
[389151979,1759591886670,-1000.0,0.00020321,2]
[389151980,1759591886680,-173.2076754,0.00020321,2]
[389151981,1759591886689,-1000.0,0.00020321,2]
[389151982,1759591886698,-1000.0,0.00020321,2]
[389151983,1759591886708,-1000.0,0.00020321,2]
[389151984,1759591886717,-1000.0,0.00020321,2]
[389151985,1759591886727,-1000.0,0.00020321,2]
[389151986,1759591886736,-1000.0,0.00020321,2]
[389151987,1759591886746,-1000.0,0.00020321,2]
[389151988,1759591886755,-500.0,0.00020381,2]
[389151989,1759591886765,-500.0,0.00020381,2]
[389151990,1759591886775,-151.0,0.00020416,2]
[389151991,1759591886784,-151.0,0.00020416,2]
[389151992,1759591886794,-151.0,0.00020416,2]
[389151993,1759591886804,-151.0,0.00020416,2]
[389151994,1759591886814,-151.0,0.00020416,2]
[389151995,1759591886828,-361.422,0.00020481,2]
[389151996,1759591886839,-166.0,0.00020512,2]
[389151997,1759591886848,-1000.0,0.00020521,2]
[389151998,1759591886857,-607.66826689,0.00020521,2]
[389151999,1759591886867,-502.11309863,0.00020521,2]
[389152000,1759591886876,-1000.0,0.00020521,2]
[389152001,1759591886886,-1000.0,0.00020521,2]
[389152002,1759591886895,-1000.0,0.00020521,2]
[389152003,1759591886905,-1000.0,0.00020521,2]
[389152004,1759591886915,-1000.0,0.00020521,2]
[389152005,1759591886925,-1000.0,0.00020521,2]
[389152006,1759591886934,-1000.0,0.00020521,2]
[389152007,1759591886944,-200.55893668,0.00020546,2]
[389152008,1759591886954,-500.0,0.00020547,2]
[389152009,1759591886965,-500.0,0.00020547,2]
[389152010,1759591886975,-1039.39,0.00020547,2]
[389152011,1759591886985,-507.83,0.00020547,2]
[389152012,1759591886995,-500.0,0.00020547,2]
[389152013,1759591887004,-500.0,0.00020547,2]
[389152014,1759591887014,-500.0,0.00020547,2]
[389152015,1759591887023,-500.0,0.00020547,2]
[389152016,1759591887035,-500.0,0.00020547,2]
[389152017,1759591887044,-500.0,0.00020547,2]
[389152018,1759591887054,-1109.72,0.00020547,2]
[389152019,1759591887064,-658.4,0.00020547,2]
[389152020,1759591887073,-403.03358231,0.00020547,2]
[389152021,1759591887083,-500.0,0.00020547,2]
[389152022,1759591887092,-500.0,0.00020547,2]
[389152023,1759591887101,-500.0,0.00020547,2]
[389152024,1759591887111,-500.0,0.00020547,2]
[389152025,1759591887120,-500.0,0.00020547,2]
[389152026,1759591887130,-1722.53,0.00020547,2]
[389152027,1759591887139,-500.0,0.00020547,2]
[389152028,1759591887149,-500.0,0.00020547,2]
[389152029,1759591887158,-500.0,0.00020547,2]
[389152030,1759591887168,-500.0,0.00020547,2]
[389152031,1759591887177,-500.0,0.00020547,2]
[389152032,1759591887186,-500.0,0.00020547,2]
[389152033,1759591887196,-151.0,0.00020547,2]
[389152034,1759591887206,-561.02,0.00020547,2]
[389152035,1759591887216,-500.0,0.00020547,2]
[389152036,1759591887227,-151.0,0.00020547,2]
[389152037,1759591887236,-500.0,0.00020547,2]
[389152038,1759591887246,-606.7,0.00020547,2]
[389152039,1759591887255,-151.0,0.00020547,2]
[389152040,1759591887264,-163.674593,0.00020547,2]
[389152041,1759591887274,-500.0,0.00020547,2]
[389152042,1759591887286,-500.0,0.00020547,2]
[389152043,1759591887296,-576.96,0.00020547,2]
[389152044,1759591887306,-500.0,0.00020547,2]
[389152045,1759591887316,-500.0,0.00020547,2]
[389152046,1759591887325,-500.0,0.00020547,2]
[389152047,1759591887334,-815.78,0.00020547,2]
[389152048,1759591887343,-500.0,0.00020547,2]
[389152049,1759591887353,-500.0,0.00020547,2]
[389152050,1759591887362,-551.35,0.00020547,2]
[389152051,1759591887372,-503.54,0.00020547,2]
[389152052,1759591887381,-500.0,0.00020547,2]
[389152053,1759591887392,-552.14,0.00020547,2]
[389152054,1759591887401,-151.0,0.00020547,2]
[389152055,1759591887411,-500.0,0.00020547,2]
[389152056,1759591887422,-500.0,0.00020547,2]
[389152057,1759591887432,-500.0,0.00020547,2]
[389152058,1759591887442,-500.0,0.00020547,2]
[389152059,1759591887453,-500.0,0.00020547,2]
[389152060,1759591887463,-500.0,0.00020547,2]
[389152061,1759591887474,-500.0,0.00020547,2]
[389152062,1759591887486,-151.0,0.00020547,2]
[389152063,1759591887498,-500.0,0.00020547,2]
[389152064,1759591887509,-983.77,0.00020547,2]
[389152065,1759591887523,-500.0,0.00020547,2]
[389152066,1759591887535,-717.9,0.00020547,2]
[389152067,1759591887545,-500.0,0.00020547,2]
[389152068,1759591887556,-151.0,0.00020547,2]
[389152069,1759591887568,-151.0,0.00020547,2]
[389152070,1759591887580,-175.71210209,0.00020547,2]
[389152071,1759591887591,-500.0,0.00020547,2]
[389152072,1759591887602,-535.53,0.00020547,2]
[389152073,1759591887614,-500.0,0.00020547,2]
[389152074,1759591887627,-539.76,0.00020547,2]
[389152075,1759591887638,-151.0,0.00020547,2]
[389152076,1759591887649,-151.0,0.00020547,2]
[389152077,1759591887660,-151.0,0.00020547,2]
[389152078,1759591887680,-1081.73,0.00020547,2]
[389152079,1759591887692,-785.95,0.00020547,2]
[389152080,1759591887703,-237.95586481,0.00020547,2]
[389152081,1759591887718,-151.0,0.00020547,2]
[389152082,1759591887734,-500.0,0.00020547,2]
[389152083,1759591887746,-500.0,0.00020547,2]
[389152084,1759591887757,-500.0,0.00020547,2]
[389152085,1759591887769,-996.16,0.00020547,2]
[389152086,1759591887781,-500.0,0.00020547,2]
[389152087,1759591887792,-500.0,0.00020547,2]
[389152088,1759591887806,-1061.25,0.00020547,2]
[389152089,1759591888011,-500.0,0.00020547,2]
[389152090,1759591888021,-500.0,0.00020547,2]
[389152091,1759591888031,-151.0,0.00020547,2]
[389152092,1759591888042,-1035.1,0.00020547,2]
[389152093,1759591888053,-500.0,0.00020547,2]
[389152094,1759591888064,-571.62,0.00020547,2]
[389152095,1759591888074,-500.0,0.00020547,2]
[389152096,1759591888083,-541.42048293,0.00020547,2]
[389152097,1759591888094,-500.0,0.00020547,2]
[389152098,1759591888104,-940.09,0.00020547,2]
[389152099,1759591888113,-500.0,0.00020547,2]
[389152100,1759591888123,-500.0,0.00020547,2]
[389152101,1759591888133,-500.0,0.00020547,2]
[389152102,1759591888142,-376.47218512,0.00020547,2]
[389152103,1759591888152,-472.07446104,0.00020547,2]
[389152104,1759591888161,-151.0,0.00020547,2]
[389152105,1759591888176,-685.26,0.00020547,2]
[389152106,1759591888187,-151.0,0.00020547,2]
[389152107,1759591888198,-500.0,0.00020547,2]
[389152108,1759591888208,-151.0,0.00020547,2]
[389152109,1759591888218,-151.0,0.00020547,2]
[389152110,1759591888227,-151.0,0.00020547,2]
[389152111,1759591888237,-151.0,0.00020547,2]
[389152112,1759591888248,-1089.32,0.00020547,2]
[389152113,1759591888258,-521.57,0.00020547,2]
[389152114,1759591888268,-500.0,0.00020547,2]
[389152115,1759591888278,-500.0,0.00020547,2]
[389152116,1759591888289,-500.0,0.00020547,2]
[389152117,1759591888298,-151.0,0.00020547,2]
[389152118,1759591888308,-346.33295774,0.00020547,2]
[389152119,1759591888317,-178.114406,0.00020547,2]
[389152120,1759591888327,-500.0,0.00020547,2]
[389152121,1759591888338,-500.0,0.00020547,2]
[389152122,1759591888347,-500.0,0.00020547,2]
[389152123,1759591888358,-500.0,0.00020547,2]
[389152124,1759591888367,-500.0,0.00020547,2]
[389152125,1759591888376,-500.0,0.00020547,2]
[389152126,1759591888386,-500.0,0.00020547,2]
[389152127,1759591888396,-638.24,0.00020547,2]
[389152128,1759591888405,-556.89,0.00020547,2]
[389152129,1759591888415,-422.56950131,0.00020547,2]
[389152130,1759591888427,-500.0,0.00020547,2]
[389152131,1759591888436,-500.0,0.00020547,2]
[389152132,1759591888447,-500.0,0.00020547,2]
[389152133,1759591888456,-935.25,0.00020547,2]
[389152134,1759591888467,-500.0,0.00020547,2]
[389152135,1759591888477,-500.0,0.00020547,2]
[389152136,1759591888487,-500.0,0.00020547,2]
[389152137,1759591888496,-388.77467103,0.00020547,2]
[389152138,1759591888506,-500.0,0.00020547,2]
[389152139,1759591888515,-3190.15,0.00020547,2]
[389152140,1759591888525,-500.0,0.00020547,2]
[389152141,1759591888534,-500.0,0.00020547,2]
[389152142,1759591888543,-500.0,0.00020547,2]
[389152143,1759591888553,-1767.35,0.00020547,2]
[389152144,1759591888562,-151.0,0.00020547,2]
[389152145,1759591888572,-151.0,0.00020547,2]
[389152146,1759591888581,-500.0,0.00020547,2]
[389152147,1759591888590,-500.0,0.00020547,2]
[389152148,1759591888599,-1021.71,0.00020547,2]
[389152149,1759591888609,-500.0,0.00020547,2]
[389152150,1759591888618,-722.22,0.00020547,2]
[389152151,1759591888627,-512.79,0.00020547,2]
[389152152,1759591888637,-500.0,0.00020547,2]
[389152153,1759591888647,-151.0,0.00020547,2]
[389152154,1759591888656,-1130.19,0.00020547,2]
[389152155,1759591888669,-155.045436,0.00020547,2]
[389152156,1759591888679,-500.0,0.00020547,2]
[389152157,1759591888688,-500.0,0.00020547,2]
[389152158,1759591888697,-500.0,0.00020547,2]
[389152159,1759591888707,-594.94,0.00020547,2]
[389152160,1759591888716,-427.1135,0.00020547,2]
[389152161,1759591888726,-500.0,0.00020547,2]
[389152162,1759591888735,-1634.65,0.00020547,2]
[389152163,1759591888745,-427.1135,0.00020547,2]
[389152164,1759591888754,-755.21,0.00020547,2]
[389152165,1759591888764,-638.84,0.00020547,2]
[389152166,1759591888774,-427.1135,0.00020547,2]
[389152167,1759591888784,-427.113504,0.00020547,2]
[389152168,1759591888794,-1184.66,0.00020547,2]
[389152169,1759591888804,-1037.44,0.00020547,2]
[389152170,1759591888819,-500.0,0.00020547,2]
[389152171,1759591888829,-500.0,0.00020547,2]
[389152172,1759591888839,-500.0,0.00020547,2]
[389152173,1759591888850,-1102.84,0.00020547,2]
[389152174,1759591888860,-151.0,0.00020547,2]
[389152175,1759591888869,-151.0,0.00020547,2]
[389152176,1759591888879,-500.0,0.00020547,2]
[389152177,1759591888888,-500.0,0.00020547,2]
[389152178,1759591888898,-500.0,0.00020547,2]
[389152179,1759591888907,-500.0,0.00020547,2]
[389152180,1759591888919,-888.19,0.00020547,2]
[389152181,1759591888929,-500.0,0.00020547,2]
[389152182,1759591888938,-500.0,0.00020547,2]
[389152183,1759591888947,-707.88,0.00020547,2]
[389152184,1759591888957,-500.0,0.00020547,2]
[389152185,1759591888966,-3472.11,0.00020547,2]
[389152186,1759591888975,-500.0,0.00020547,2]
[389152187,1759591888985,-607.97,0.00020547,2]
[389152188,1759591888994,-500.0,0.00020547,2]
[389152189,1759591889004,-2253.27,0.00020547,2]
[389152190,1759591889013,-309.2726385,0.00020547,2]
[389152191,1759591889024,-151.0,0.00020547,2]
[389152192,1759591889034,-500.0,0.00020547,2]
[389152193,1759591889043,-326.85350048,0.00020547,2]
[389152194,1759591889052,-500.0,0.00020547,2]
[389152195,1759591889062,-1207.5,0.00020547,2]
[389152196,1759591889072,-896.72,0.00020547,2]
[389152197,1759591889081,-500.0,0.00020547,2]
[389152198,1759591889091,-1747.71,0.00020547,2]
[389152199,1759591889099,-500.0,0.00020547,2]
[389152200,1759591889109,-500.0,0.00020547,2]
[389152201,1759591889118,-500.0,0.00020547,2]
[389152202,1759591889127,-595.63,0.00020547,2]
[389152203,1759591889137,-500.0,0.00020547,2]
[389152204,1759591889146,-827.71,0.00020547,2]
[389152205,1759591889155,-500.0,0.00020547,2]
[389152206,1759591889165,-504.25,0.00020547,2]
[389152207,1759591889179,-500.0,0.00020547,2]
[389152208,1759591889189,-890.07,0.00020547,2]
[389152209,1759591889198,-500.0,0.00020547,2]
[389152210,1759591889207,-914.63,0.00020547,2]
[389152211,1759591889216,-1015.82,0.00020547,2]
[389152212,1759591889226,-330.744392,0.00020547,2]
[389152213,1759591889236,-500.0,0.00020547,2]
[389152214,1759591889246,-500.0,0.00020547,2]
[389152215,1759591889256,-500.0,0.00020547,2]
[389152216,1759591889266,-500.0,0.00020547,2]
[389152217,1759591889275,-500.0,0.00020547,2]
[389152218,1759591889286,-500.0,0.00020547,2]
[389152219,1759591889297,-532.07,0.00020547,2]
[389152220,1759591889306,-870.38,0.00020547,2]
[389152221,1759591889316,-500.0,0.00020547,2]
[389152222,1759591889325,-500.0,0.00020547,2]
[389152223,1759591889334,-3160.55,0.00020547,2]
[389152224,1759591889343,-1519.75,0.00020547,2]
[389152225,1759591889352,-500.0,0.00020547,2]
[389152226,1759591889362,-500.0,0.00020547,2]
[389152227,1759591889371,-1300.89,0.00020547,2]
[389152228,1759591889381,-2067.67,0.00020547,2]
[389152229,1759591889390,-492.47914744,0.00020547,2]
[389152230,1759591889399,-500.0,0.00020547,2]
[389152231,1759591889409,-614.77,0.00020547,2]
[389152232,1759591889420,-857.26,0.00020547,2]
[389152233,1759591889430,-560.4,0.00020547,2]